bitfinex/quotes_BTCUSD_20240627
["timestamp","ask_amount","ask_price","bid_price","bid_amount"]
[1719491566956,0.01999961,61387.0,61365.0,0.3133]
[1719491566957,0.325871,61374.0,61365.0,0.3133]
[1719491567173,0.162951,61368.0,61365.0,0.47563898]
[1719491567384,0.162944,61371.0,61367.0,0.02]
[1719491567606,0.1,61373.0,61369.0,0.08130346]
[1719491567607,0.1,61370.0,61369.0,0.08130346]
[1719491567824,0.1,61373.0,61369.0,0.26364244]
[1719491568043,0.1,61373.0,61371.0,0.014]
[1719491568252,0.1,61373.0,61372.0,0.16233898]
[1719491568468,0.1,61373.0,61371.0,0.014]
[1719491568469,0.814702,61372.0,61371.0,0.014]
[1719491568682,0.162967,61362.0,61354.0,0.3327]
[1719491568902,0.325913,61366.0,61354.0,0.3327]
[1719491569113,0.162983,61356.0,61355.0,0.2651]
[1719491569350,0.1,61362.0,61355.0,0.2651]
[1719491569351,0.425934,61362.0,61355.0,0.2651]
[1719491569561,0.1,61356.0,61355.0,0.34640346]
[1719491569785,0.1,61356.0,61355.0,0.43631381]
[1719491570218,0.325857,61377.0,61362.0,0.02]
[1719491570376,0.162938,61373.0,61365.0,0.08130346]
[1719491570590,0.132506,61376.0,61371.0,0.02]
[1719491570591,0.1,61372.0,61371.0,0.02]
[1719491570788,0.1,61376.0,61371.0,0.5698]
[1719491570991,0.13514,61375.0,61371.0,0.5698]
[1719491571193,0.1,61374.0,61371.0,0.5698]
[1719491571400,0.1,61376.0,61371.0,0.5698]
[1719491571966,0.16294,61372.0,61371.0,0.2664]
[1719491572164,0.426881,61372.0,61371.0,0.014]
[1719491572365,1.153267,61372.0,61371.0,0.014]
[1719491572583,0.913047,61372.0,61371.0,0.014]
[1719491572788,0.26394,61372.0,61371.0,0.014]
[1719491573256,0.589821,61372.0,61371.0,0.014]
[1719491573364,1.427685,61372.0,61371.0,0.014]
[1719491573706,0.699821,61372.0,61371.0,0.014]
[1719491573870,0.26394,61372.0,61371.0,0.014]
[1719491574075,0.101,61372.0,61371.0,0.014]
[1719491574497,0.1,61372.0,61363.0,0.5749]
[1719491574744,0.162943,61372.0,61364.0,0.16233898]
[1719491574950,0.1,61371.0,61364.0,0.16233898]
[1719491576123,0.1,61371.0,61367.0,0.02]
[1719491576334,0.325872,61374.0,61367.0,0.02]
[1719491576335,0.257938,61373.0,61367.0,0.02]
[1719491576528,0.162942,61372.0,61364.0,0.16233898]
[1719491576931,0.095,61373.0,61364.0,0.16233898]
[1719491577226,0.257939,61373.0,61364.0,0.16233898]
[1719491577446,0.257939,61373.0,61364.0,0.23606288]
[1719491577677,0.095,61373.0,61363.0,0.5749]
[1719491577881,1.71325,61372.0,61363.0,0.5749]
[1719491578046,0.55077,61371.0,61364.0,0.02]
[1719491578245,0.325883,61372.0,61363.0,0.5749]
[1719491578246,0.162946,61370.0,61363.0,0.5749]
[1719491578615,0.325885,61372.0,61364.0,0.014]
[1719491578616,0.262948,61369.0,61364.0,0.014]
[1719491578743,0.325906,61368.0,61364.0,0.014]
[1719491578949,0.162959,61365.0,61364.0,0.014]
[1719491579154,1.447343,61365.0,61364.0,0.014]
[1719491579352,1.447343,61365.0,61355.0,0.2619]
[1719491579353,0.677638,61365.0,61355.0,0.2619]
[1719491579597,0.162983,61356.0,61355.0,0.2619]
[1719491579803,0.162983,61356.0,61353.0,0.3194]
[1719491579804,0.262983,61356.0,61353.0,0.3194]
[1719491580096,0.325962,61357.0,61353.0,0.3194]
[1719491580097,0.1,61355.0,61353.0,0.3194]
[1719491580693,0.1,61355.0,61349.0,0.2619]
[1719491580904,0.1,61367.0,61354.0,0.08130346]
[1719491581109,0.1147,61366.0,61350.0,0.02]
[1719491581319,0.162986,61355.0,61350.0,0.02]
[1719491581523,0.1,61354.0,61351.0,0.01]
[1719491581727,0.1,61354.0,61353.0,0.02]
[1719491581950,0.1,61354.0,61353.0,0.18233898]
[1719491582133,0.325878,61373.0,61360.0,0.02]
[1719491582377,0.48782074,61370.0,61361.0,0.08130346]
[1719491582631,0.48782074,61370.0,61354.0,0.08130346]
[1719491582632,0.162966,61363.0,61354.0,0.08130346]
[1719491582869,0.1,61362.0,61357.0,0.02]
[1719491583000,0.1,61362.0,61361.0,0.62550346]
[1719491583221,0.1,61362.0,61361.0,0.80784244]
[1719491583553,0.1,61362.0,61361.0,0.5442]
[1719491583774,0.1,61362.0,61355.0,0.014]
[1719491583982,0.162983,61356.0,61355.0,0.014]
[1719491584196,0.488949,61356.0,61355.0,0.014]
[1719491584397,0.588949,61356.0,61355.0,0.014]
[1719491584599,2.103774,61356.0,61355.0,0.014]
[1719491584802,0.914915,61356.0,61355.0,0.014]
[1719491585004,1.039293,61356.0,61355.0,0.014]
[1719491585219,0.914915,61356.0,61355.0,0.014]
[1719491585419,1.039293,61356.0,61355.0,0.014]
[1719491585599,1.365259,61356.0,61355.0,0.014]
[1719491586000,0.163002,61349.0,61346.0,0.08130346]
[1719491586206,0.1,61348.0,61346.0,0.08130346]
[1719491586567,0.1,61348.0,61347.0,0.02]
[1719491586929,0.162959,61365.0,61353.0,0.02]
[1719491587174,0.162959,61365.0,61346.0,0.08130346]
[1719491587175,0.162962,61364.0,61358.0,0.08130346]
[1719491587365,0.162968,61362.0,61358.0,0.08130346]
[1719491587665,0.4729,61367.0,61358.0,0.08130346]
[1719491587666,0.4729,61367.0,61360.0,0.3509]
[1719491587803,0.4729,61367.0,61361.0,0.2653]
[1719491588001,0.5364851,61367.0,61355.0,0.02]
[1719491588207,0.5364851,61367.0,61360.0,0.08130346]
[1719491588208,0.162968,61362.0,61360.0,0.08130346]
[1719491588412,0.01999961,61374.0,61360.0,0.08130346]
[1719491588413,0.1,61361.0,61360.0,0.08130346]
[1719491588614,0.1,61361.0,61354.0,0.2653]
[1719491588802,0.1,61361.0,61353.0,0.08130346]
[1719491588803,0.325953,61359.0,61353.0,0.08130346]
[1719491589010,0.162987,61355.0,61353.0,0.08130346]
[1719491589419,0.1,61354.0,61353.0,0.10130346]
[1719491589641,0.1,61354.0,61353.0,0.26364244]
[1719491589843,0.1,61354.0,61353.0,0.34962668]
[1719491590046,0.162946,61370.0,61360.0,0.02]
[1719491590247,0.162952,61368.0,61363.0,0.08130346]
[1719491590452,0.1,61367.0,61364.0,0.16233898]
[1719491590661,0.1,61367.0,61365.0,0.26816424]
[1719491590860,0.1,61367.0,61366.0,0.16233898]
[1719491591062,0.1,61367.0,61366.0,0.18233898]
[1719491591487,0.262933,61375.0,61369.0,0.02]
[1719491591687,0.262933,61375.0,61369.0,0.16233898]
[1719491591888,0.162936,61374.0,61369.0,0.16233898]
[1719491592108,0.1,61373.0,61369.0,0.16233898]
[1719491592485,0.7375253,61372.0,61357.0,0.2411]
[1719491592796,0.1,61373.0,61361.0,0.08130346]
[1719491592797,0.162954,61367.0,61361.0,0.08130346]
[1719491592984,0.1,61366.0,61361.0,0.08130346]
[1719491593117,0.1,61366.0,61357.0,0.2411]
[1719491593325,0.3664913,61365.0,61357.0,0.2411]
[1719491593525,0.27289961,61372.0,61353.0,0.014]
[1719491593526,0.722191,61364.0,61353.0,0.014]
[1719491593732,0.162986,61355.0,61353.0,0.014]
[1719491593929,0.162986,61355.0,61352.0,0.3309]
[1719491593930,0.162991,61353.0,61352.0,0.3309]
[1719491594196,0.1,61354.0,61352.0,0.3309]
[1719491594344,0.1,61354.0,61353.0,0.08130346]
[1719491594972,0.325922,61365.0,61356.0,0.02]
[1719491594973,0.1,61359.0,61356.0,0.02]
[1719491595173,0.1,61364.0,61357.0,0.16233898]
[1719491595373,0.4729,61369.0,61355.0,0.02]
[1719491595374,0.162981,61357.0,61355.0,0.02]
[1719491595552,0.1,61356.0,61355.0,0.02]
[1719491596160,0.325903,61368.0,61362.0,0.02]
[1719491596358,0.162956,61367.0,61363.0,0.08130346]
[1719491596617,0.1,61366.0,61363.0,0.08130346]
[1719491596961,0.1,61366.0,61355.0,0.22970933]
[1719491596962,0.162962,61364.0,61357.0,0.02]
[1719491597154,0.1,61363.0,61358.0,0.16233898]
[1719491597384,0.1,61363.0,61362.0,0.02]
[1719491597588,0.1,61363.0,61362.0,0.76163898]
[1719491597863,0.1,61363.0,61362.0,0.96163898]
[1719491598062,0.162928,61377.0,61362.0,0.74163898]
[1719491598263,0.325853,61378.0,61371.0,0.08130346]
[1719491598264,0.26293,61376.0,61371.0,0.08130346]
[1719491598464,0.4729,61379.0,61373.0,0.02]
[1719491598668,0.4729,61379.0,61374.0,0.16233898]
[1719491599149,0.635823,61379.0,61374.0,0.16233898]
[1719491599576,0.4729,61379.0,61374.0,0.16233898]
[1719491599779,0.1,61378.0,61374.0,0.16233898]
[1719491600187,0.16294,61372.0,61371.0,0.004]
[1719491600406,0.1,61372.0,61371.0,0.004]
[1719491600974,0.914702,61372.0,61371.0,0.004]
[1719491601178,1.071859,61372.0,61371.0,0.004]
[1719491601386,1.39774,61372.0,61371.0,0.004]
[1719491601762,0.914702,61372.0,61371.0,0.004]
[1719491601968,0.1,61372.0,61371.0,0.004]
[1719491602364,0.1,61374.0,61371.0,0.004]
[1719491602563,0.162935,61374.0,61363.0,0.08130346]
[1719491602790,0.1,61373.0,61364.0,0.16233898]
[1719491603354,0.1,61373.0,61372.0,0.02]
[1719491603471,0.1,61373.0,61372.0,0.18233898]
[1719491603673,0.1,61373.0,61372.0,0.16233898]
[1719491603870,0.162912,61383.0,61373.0,0.02]
[1719491604094,0.162912,61383.0,61374.0,0.16233898]
[1719491604095,0.1,61382.0,61374.0,0.16233898]
[1719491604292,0.262915,61382.0,61374.0,0.16233898]
[1719491605211,0.262915,61382.0,61366.0,0.02]
[1719491605212,0.57612855,61381.0,61366.0,0.02]
[1719491605387,0.162945,61371.0,61367.0,0.16233898]
[1719491605714,0.162938,61373.0,61367.0,0.16233898]
[1719491605876,0.1,61372.0,61370.0,0.08130346]
[1719491606075,0.1,61372.0,61371.0,0.16233898]
[1719491606278,0.14337283,61372.0,61364.0,0.008]
[1719491606478,0.162959,61365.0,61364.0,0.008]
[1719491606725,0.262959,61365.0,61364.0,0.008]
[1719491606944,0.588877,61365.0,61364.0,0.008]
[1719491607262,0.588877,61365.0,61362.0,0.5793]
[1719491607263,0.33615955,61365.0,61356.0,0.28]
[1719491607417,0.162972,61360.0,61357.0,0.16233898]
[1719491607595,0.162968,61362.0,61357.0,0.16233898]
[1719491607792,0.0732516,61363.0,61360.0,0.08130346]
[1719491607793,0.2362166,61363.0,61360.0,0.08130346]
[1719491608007,0.162967,61362.0,61360.0,0.08130346]
[1719491608529,0.162969,61361.0,61360.0,0.08130346]
[1719491610119,0.162967,61362.0,61360.0,0.08130346]
[1719491610314,0.0732516,61363.0,61361.0,0.16233898]
[1719491610564,0.262963,61364.0,61361.0,0.16233898]
[1719491610717,0.07326108,61363.0,61361.0,0.16233898]
[1719491610914,0.262963,61364.0,61361.0,0.16233898]
[1719491611125,0.06826101,61363.0,61361.0,0.16233898]
[1719491611322,0.23122501,61363.0,61361.0,0.16233898]
[1719491611566,0.162993,61352.0,61351.0,0.2482]
[1719491611769,0.53414,61362.0,61352.0,0.02]
[1719491611770,0.09769488,61356.0,61352.0,0.02]
[1719491611985,0.1,61357.0,61355.0,0.08130346]
[1719491612193,0.1,61357.0,61356.0,0.16233898]
[1719491612363,0.1,61357.0,61356.0,0.21152322]
[1719491612561,0.1,61357.0,61356.0,0.23152322]
[1719491612764,0.1,61357.0,61356.0,0.21152322]
[1719491613013,0.09769488,61365.0,61356.0,0.21152322]
[1719491613178,0.12211861,61367.0,61356.0,0.21152322]
[1719491613179,0.162954,61367.0,61365.0,0.08130346]
[1719491613383,0.1,61366.0,61365.0,0.24364244]
[1719491614167,0.1,61366.0,61365.0,0.16233898]
[1719491614168,0.36063173,61366.0,61365.0,0.16233898]
[1719491614391,0.262956,61366.0,61365.0,0.16233898]
[1719491614597,0.38507849,61366.0,61365.0,0.16233898]
[1719491615292,0.30550882,61369.0,61365.0,0.16233898]
[1719491615502,0.162956,61366.0,61365.0,0.16233898]
[1719491615890,0.26065562,61366.0,61365.0,0.16233898]
[1719491616083,0.09769946,61366.0,61365.0,0.16233898]
[1719491616323,0.09769946,61366.0,61365.0,0.17857288]
[1719491616529,0.09769946,61366.0,61365.0,0.19857288]
[1719491616752,0.325889,61371.0,61366.0,0.02]
[1719491616753,0.09769699,61370.0,61366.0,0.02]
[1719491616952,0.09769699,61370.0,61368.0,0.08130346]
[1719491617176,0.09769699,61370.0,61360.0,0.02]
[1719491617406,0.325861,61376.0,61357.0,0.27648267]
[1719491617407,0.162961,61364.0,61363.0,0.10130346]
[1719491617734,0.42361701,61365.0,61363.0,0.08130346]
[1719491617735,0.09769701,61365.0,61363.0,0.08130346]
[1719491618086,0.09769701,61365.0,61364.0,0.17246933]
[1719491618216,0.09769701,61365.0,61359.0,0.02]
[1719491618217,0.162972,61360.0,61359.0,0.02]
[1719491618427,0.09769701,61364.0,61360.0,0.02]
[1719491618629,0.162964,61363.0,61362.0,0.10130346]
[1719491618886,0.162964,61363.0,61362.0,0.08130346]
[1719491618887,0.1,61363.0,61362.0,0.08130346]
[1719491619096,0.1,61363.0,61362.0,0.27940789]
[1719491619880,0.09770442,61365.0,61362.0,0.27940789]
[1719491620093,0.09770442,61365.0,61363.0,0.16233898]
[1719491620094,0.07327831,61364.0,61363.0,0.16233898]
[1719491620291,0.17327831,61364.0,61363.0,0.16233898]
[1719491620494,0.1,61364.0,61363.0,0.16233898]
[1719491621038,0.1,61364.0,61362.0,0.014]
[1719491621039,0.162964,61363.0,61362.0,0.014]
[1719491621206,0.488893,61363.0,61362.0,0.014]
[1719491621409,0.162994,61352.0,61350.0,0.2524]
[1719491621608,0.162994,61352.0,61351.0,0.16233898]
[1719491621609,0.162993,61352.0,61351.0,0.16233898]
[1719491621779,0.262993,61352.0,61351.0,0.16233898]
[1719491621985,0.58898,61352.0,61350.0,0.2524]
[1719491622219,0.58898,61352.0,61350.0,0.16233898]
[1719491622220,0.262996,61351.0,61350.0,0.16233898]
[1719491622417,0.588989,61351.0,61350.0,0.16233898]
[1719491622621,0.326003,61349.0,61344.0,0.2651]
[1719491622819,0.1,61351.0,61340.0,0.02]
[1719491622820,0.163023,61341.0,61340.0,0.02]
[1719491622999,0.326038,61343.0,61340.0,0.18233898]
[1719491623000,0.163021,61342.0,61340.0,0.18233898]
[1719491623196,0.326038,61343.0,61340.0,0.16233898]
[1719491623477,0.326017,61347.0,61341.0,0.16233898]
[1719491623694,0.263011,61346.0,61341.0,0.16233898]
[1719491624102,0.263011,61346.0,61340.0,0.02]
[1719491624103,0.1,61346.0,61340.0,0.02]
[1719491624306,0.326032,61344.0,61339.0,0.40850346]
[1719491624510,0.163025,61341.0,61339.0,0.40850346]
[1719491624886,0.163025,61341.0,61340.0,0.16233898]
[1719491625047,0.489071,61341.0,61340.0,0.16233898]
[1719491625416,0.163025,61341.0,61340.0,0.16233898]
[1719491625828,0.163025,61341.0,61340.0,0.18233898]
[1719491626355,0.163025,61341.0,61340.0,0.16233898]
[1719491626555,0.163025,61341.0,61338.0,0.2651]
[1719491626556,0.489084,61339.0,61338.0,0.2651]
[1719491626759,0.1,61339.0,61338.0,0.50915898]
[1719491626986,0.1,61339.0,61338.0,0.44743898]
[1719491627159,0.1,61339.0,61338.0,0.42743898]
[1719491627571,0.1,61339.0,61338.0,0.44743898]
[1719491627773,0.1,61339.0,61338.0,0.42743898]
[1719491627974,0.1,61340.0,61338.0,0.50531998]
[1719491628175,0.1,61340.0,61339.0,0.24364244]
[1719491628560,0.263025,61340.0,61339.0,0.24364244]
[1719491629221,0.263025,61340.0,61339.0,0.08130346]
[1719491629392,0.326078,61335.0,61331.0,0.10130346]
[1719491629640,0.163042,61334.0,61332.0,0.16233898]
[1719491629796,0.1,61340.0,61334.0,0.02]
[1719491630001,0.53298522,61359.0,61331.0,0.08130346]
[1719491630002,0.1,61347.0,61340.0,0.02]
[1719491630204,0.163007,61347.0,61346.0,0.08130346]
[1719491630439,0.263007,61347.0,61346.0,0.08130346]
[1719491630867,0.263007,61347.0,61341.0,0.16233898]
[1719491630868,0.16302,61342.0,61341.0,0.16233898]
[1719491631077,0.163025,61340.0,61339.0,0.08130346]
[1719491631292,0.163025,61340.0,61339.0,0.24364244]
[1719491631293,0.589076,61340.0,61339.0,0.24364244]
[1719491631581,0.263025,61340.0,61339.0,0.24364244]
[1719491632203,0.1,61340.0,61339.0,0.24364244]
[1719491632807,0.1,61343.0,61341.0,0.02]
[1719491633035,0.326012,61348.0,61342.0,0.16233898]
[1719491633280,0.489013,61348.0,61347.0,0.08130346]
[1719491633462,0.589013,61348.0,61347.0,0.08130346]
[1719491635480,0.915022,61348.0,61347.0,0.08130346]
[1719491637020,0.163025,61340.0,61339.0,0.08130346]
[1719491637264,0.163025,61340.0,61339.0,0.24364244]
[1719491637265,0.263025,61340.0,61339.0,0.24364244]
[1719491637466,0.589076,61340.0,61339.0,0.24364244]
[1719491637874,0.589076,61340.0,61330.0,0.02]
[1719491637875,0.815235,61332.0,61330.0,0.02]
[1719491638083,0.489141,61332.0,61331.0,0.24364244]
[1719491638726,0.815235,61332.0,61331.0,0.24364244]
[1719491638900,0.815235,61332.0,61325.0,0.000924]
[1719491638901,0.163062,61326.0,61325.0,0.000924]
[1719491639103,0.163062,61326.0,61325.0,0.16326298]
[1719491639104,0.815312,61326.0,61325.0,0.16326298]
[1719491639253,1.241437,61326.0,61325.0,0.000924]
[1719491639653,0.915312,61326.0,61325.0,0.000924]
[1719491640888,1.241437,61326.0,61325.0,0.000924]
[1719491642360,1.242437,61326.0,61325.0,0.014924]
[1719491643051,1.242437,61326.0,61325.0,0.000924]
[1719491643052,1.241437,61326.0,61325.0,0.000924]
[1719491643761,1.242437,61326.0,61325.0,0.014924]
[1719491644109,0.264062,61326.0,61325.0,0.17726298]
[1719491644336,0.001,61326.0,61325.0,0.19726298]
[1719491644540,0.001,61326.0,61325.0,0.46186298]
[1719491644966,0.001,61326.0,61325.0,0.66186298]
[1719491645372,0.001,61326.0,61325.0,0.46186298]
[1719491645949,0.001,61326.0,61325.0,0.66186298]
[1719491646366,0.001,61326.0,61325.0,0.53617962]
[1719491646567,0.164062,61326.0,61325.0,0.46186298]
[1719491647030,1.242437,61326.0,61325.0,0.014924]
[1719491647411,0.916312,61326.0,61325.0,0.014924]
[1719491647643,0.264062,61326.0,61325.0,0.17726298]
[1719491648075,0.916312,61326.0,61325.0,0.17726298]
[1719491648602,0.590187,61326.0,61325.0,0.17726298]
[1719491648822,0.916312,61326.0,61325.0,0.17726298]
[1719491649023,0.264062,61326.0,61325.0,0.17726298]
[1719491649225,0.264062,61326.0,61325.0,0.19498928]
[1719491649226,0.101,61326.0,61325.0,0.19498928]
[1719491649426,0.001,61326.0,61325.0,0.21498928]
[1719491649640,0.001,61326.0,61325.0,0.27856644]
[1719491650261,0.490187,61326.0,61325.0,0.17726298]
[1719491650403,0.916312,61326.0,61325.0,0.014924]
[1719491651016,0.916312,61326.0,61325.0,0.17726298]
[1719491651017,0.101,61326.0,61325.0,0.17726298]
[1719491651243,0.101,61326.0,61325.0,0.19726298]
[1719491651639,0.001,61326.0,61325.0,0.2173154]
[1719491652300,0.001,61326.0,61325.0,0.6868154]
[1719491652512,0.001,61326.0,61325.0,0.8498804]
[1719491652730,0.001,61326.0,61325.0,1.6804114]
[1719491652891,0.48782074,61349.0,61346.0,0.2512]
[1719491653117,0.48782074,61349.0,61348.0,0.09130346]
[1719491653348,0.162992,61353.0,61348.0,0.24364244]
[1719491653546,0.162998,61351.0,61349.0,0.16233898]
[1719491653721,0.488975,61353.0,61349.0,0.16233898]
[1719491653925,0.162994,61352.0,61349.0,0.20514912]
[1719491654100,0.162994,61352.0,61349.0,0.16233898]
[1719491654477,0.325953,61359.0,61349.0,0.16233898]
[1719491654686,0.162987,61355.0,61349.0,0.16233898]
[1719491654912,0.162987,61355.0,61351.0,0.02]
[1719491655117,0.162987,61355.0,61352.0,0.16233898]
[1719491655118,0.325973,61355.0,61352.0,0.16233898]
[1719491655317,0.32593,61363.0,61352.0,0.16233898]
[1719491655540,0.32593,61363.0,61353.0,0.02636424]
[1719491655541,0.162986,61355.0,61353.0,0.02636424]
[1719491655741,0.162986,61355.0,61354.0,0.16233898]
[1719491656180,0.325946,61360.0,61354.0,0.18233898]
[1719491656350,0.1,61359.0,61357.0,0.08130346]
[1719491656556,0.162967,61362.0,61358.0,0.18233898]
[1719491656759,0.1,61361.0,61358.0,0.18233898]
[1719491657377,0.1,61361.0,61358.0,0.16233898]
[1719491657618,0.325906,61368.0,61358.0,0.16233898]
[1719491657619,0.26296,61365.0,61358.0,0.18233898]
[1719491658156,0.162954,61367.0,61365.0,0.02]
[1719491658356,0.162954,61367.0,61365.0,0.18233898]
[1719491658576,0.162956,61366.0,61365.0,0.16233898]
[1719491658776,0.162956,61366.0,61365.0,0.1843907]
[1719491659399,0.162952,61368.0,61365.0,0.16233898]
[1719491659627,0.325886,61371.0,61364.0,0.33850346]
[1719491659628,0.1,61366.0,61364.0,0.33850346]
[1719491659849,0.1,61365.0,61364.0,0.33850346]
[1719491660623,0.1,61365.0,61358.0,0.2593]
[1719491660857,0.1,61365.0,61359.0,0.26690172]
[1719491661097,0.262947,61370.0,61360.0,0.02]
[1719491661334,0.262947,61370.0,61366.0,0.08130346]
[1719491661613,0.262947,61370.0,61361.0,0.16559792]
[1719491661614,0.1,61370.0,61369.0,0.08130346]
[1719491661850,0.262937,61374.0,61369.0,0.24364244]
[1719491662093,0.0255551,61370.0,61359.0,0.08130346]
[1719491662311,0.162957,61366.0,61360.0,0.16233898]
[1719491662481,0.162957,61366.0,61360.0,0.16633898]
[1719491662482,0.1,61365.0,61360.0,0.16633898]
[1719491662644,0.162969,61361.0,61360.0,0.16633898]
[1719491662843,0.162969,61361.0,61353.0,0.02]
[1719491662844,0.162979,61358.0,61353.0,0.02]
[1719491663051,0.325924,61364.0,61355.0,0.08130346]
[1719491663250,0.1,61365.0,61355.0,0.08130346]
[1719491663251,0.32594,61361.0,61356.0,0.16233898]
[1719491663619,0.1,61360.0,61356.0,0.16233898]
[1719491663828,0.162975,61359.0,61356.0,0.16233898]
[1719491664447,0.162977,61358.0,61356.0,0.16233898]
[1719491664662,0.1,61357.0,61348.0,0.08130346]
[1719491664872,0.162994,61352.0,61349.0,0.16233898]
[1719491665078,0.162997,61351.0,61349.0,0.16233898]
[1719491665280,0.262995,61352.0,61349.0,0.16233898]
[1719491665488,0.262995,61352.0,61349.0,0.24494322]
[1719491665910,0.162996,61351.0,61349.0,0.24494322]
[1719491666116,0.1,61350.0,61349.0,0.24494322]
[1719491666530,0.1,61350.0,61349.0,0.16233898]
[1719491668129,0.1,61350.0,61349.0,0.18233898]
[1719491668341,0.1,61352.0,61351.0,0.02]
[1719491668686,0.262973,61360.0,61352.0,0.02]
[1719491668892,0.262973,61360.0,61359.0,0.08130346]
[1719491669101,0.1,61360.0,61359.0,0.24364244]
[1719491669308,0.639999,61369.0,61361.0,0.02]
[1719491669309,0.1,61362.0,61361.0,0.02]
[1719491669517,0.325902,61368.0,61366.0,0.08130346]
[1719491669719,0.162954,61367.0,61366.0,0.08130346]
[1719491670126,0.325885,61372.0,61366.0,0.08130346]
[1719491670352,0.01999961,61381.0,61367.0,0.16233898]
[1719491670560,0.288313,61379.0,61368.0,0.02636424]
[1719491670782,0.162936,61374.0,61369.0,0.16233898]
[1719491671001,0.483316,61381.0,61369.0,0.16233898]
[1719491671002,0.162946,61370.0,61369.0,0.16233898]
[1719491671431,0.488838,61370.0,61369.0,0.16233898]
[1719491672215,0.162946,61370.0,61369.0,0.17857288]
[1719491672632,0.262946,61370.0,61369.0,0.17857288]
[1719491672974,0.1,61370.0,61369.0,0.17857288]
[1719491673183,0.1,61370.0,61369.0,0.21057288]
[1719491673387,0.1,61370.0,61369.0,0.19057288]
[1719491673600,0.16293,61376.0,61370.0,0.02]
[1719491673806,0.1,61375.0,61372.0,0.08130346]
[1719491674040,0.1,61375.0,61373.0,0.16233898]
[1719491674660,0.1,61375.0,61369.0,0.012]
[1719491674879,0.162946,61370.0,61369.0,0.012]
[1719491675083,0.262946,61370.0,61369.0,0.012]
[1719491675311,0.588838,61370.0,61369.0,0.012]
[1719491675524,0.91473,61370.0,61369.0,0.17433898]
[1719491675695,0.588838,61370.0,61369.0,0.17433898]
[1719491676578,0.588838,61370.0,61369.0,0.16233898]
[1719491678232,0.588838,61370.0,61369.0,0.17433898]
[1719491679098,0.589678,61370.0,61369.0,0.17433898]
[1719491679315,1.241462,61370.0,61369.0,0.012]
[1719491679521,0.91557,61370.0,61369.0,0.012]
[1719491680147,1.241462,61370.0,61369.0,0.012]
[1719491680445,1.52096161,61370.0,61369.0,0.012]
[1719491680654,3.84390661,61370.0,61369.0,0.012]
[1719491680873,4.08170661,61370.0,61369.0,0.012]
[1719491681604,3.78708103,61370.0,61369.0,0.012]
[1719491681982,0.325982,61353.0,61352.0,0.48782074]
[1719491682191,0.814955,61353.0,61352.0,0.16233898]
[1719491682342,0.814955,61353.0,61348.0,0.39600346]
[1719491682343,0.815007,61349.0,61348.0,0.08130346]
[1719491682544,0.815007,61349.0,61348.0,0.24364244]
[1719491682744,0.489052,61343.0,61342.0,0.2631]
[1719491682951,0.163017,61343.0,61342.0,0.42543898]
[1719491683146,0.163017,61343.0,61342.0,0.50958322]
[1719491683431,0.325992,61352.0,61344.0,0.02]
[1719491683545,0.325992,61352.0,61345.0,0.16559887]
[1719491683546,0.163,61350.0,61345.0,0.16559887]
[1719491683747,0.326006,61349.0,61345.0,0.16233898]
[1719491684058,0.263005,61348.0,61345.0,0.16233898]
[1719491684257,0.2659,61347.0,61333.0,0.02]
[1719491684459,0.163026,61340.0,61334.0,0.08130346]
[1719491684686,0.326047,61341.0,61334.0,0.08130346]
[1719491684687,0.163035,61337.0,61334.0,0.08130346]
[1719491684848,0.163031,61338.0,61334.0,0.08130346]
[1719491685047,0.326058,61339.0,61334.0,0.08130346]
[1719491685048,0.326057,61339.0,61334.0,0.08130346]
[1719491685248,0.1,61346.0,61334.0,0.08130346]
[1719491685249,0.163039,61335.0,61334.0,0.08130346]
[1719491685534,0.915195,61335.0,61334.0,0.16233898]
[1719491685645,0.163052,61330.0,61329.0,0.2577]
[1719491685861,0.489156,61330.0,61329.0,0.16233898]
[1719491686326,0.489156,61330.0,61325.0,0.000924]
[1719491686327,0.163062,61326.0,61325.0,0.000924]
[1719491686554,0.589187,61326.0,61325.0,0.16326298]
[1719491686806,0.1,61326.0,61325.0,0.16326298]
[1719491687071,0.1,61326.0,61325.0,0.000924]
[1719491687072,0.915312,61326.0,61325.0,0.000924]
[1719491688411,1.0656735,61326.0,61325.0,0.000924]
[1719491688589,3.66239511,61326.0,61325.0,0.000924]
[1719491688781,5.10382109,61326.0,61325.0,0.000924]
[1719491689117,5.62994609,61326.0,61325.0,0.000924]
[1719491689436,5.10382109,61326.0,61325.0,0.000924]
[1719491689641,1.783555,61326.0,61325.0,0.000924]
[1719491690911,1.166876,61326.0,61325.0,0.000924]
[1719491691520,0.589187,61326.0,61325.0,0.000924]
[1719491691727,1.017454,61326.0,61325.0,0.000924]
[1719491692257,1.17803,61326.0,61325.0,0.000924]
[1719491692459,1.343579,61326.0,61325.0,0.000924]
[1719491692661,1.343579,61326.0,61310.0,0.11053246]
[1719491692662,0.1681635,61317.0,61310.0,0.11053246]
[1719491692968,0.263089,61316.0,61312.0,0.02]
[1719491693945,0.263089,61316.0,61315.0,0.19156798]
[1719491693946,0.1,61316.0,61315.0,0.19156798]
[1719491694149,0.326128,61326.0,61318.0,0.02]
[1719491694150,0.1,61319.0,61318.0,0.02]
[1719491694377,0.1,61319.0,61318.0,0.43013898]
[1719491694613,1.253972,61337.0,61318.0,0.51144244]
[1719491694614,0.1,61320.0,61318.0,0.51144244]
[1719491694821,0.1,61320.0,61319.0,0.18560039]
[1719491695101,0.2639,61344.0,61328.0,0.02]
[1719491695102,0.1,61332.0,61328.0,0.02]